bitfinex/quotes_BTCUSD_20250512
["timestamp","ask_amount","ask_price","bid_price","bid_amount"]
[1747050833868,0.002,103750.0,103740.0,3.49048226]
[1747050834754,0.002,103750.0,103740.0,2.20928426]
[1747050835823,0.001,103750.0,103740.0,2.20528426]
[1747050836018,0.03854908,103760.0,103750.0,0.22168562]
[1747050836268,0.03854908,103760.0,103750.0,0.64860203]
[1747050836870,0.02891165,103760.0,103750.0,2.09487503]
[1747050837080,0.02891165,103760.0,103750.0,1.98587803]
[1747050837275,0.02891165,103760.0,103750.0,1.59166003]
[1747050837455,0.02991165,103760.0,103750.0,1.59366003]
[1747050838362,0.01063678,103760.0,103750.0,1.59366003]
[1747050838560,0.01063678,103760.0,103750.0,1.62406003]
[1747050838763,0.02991082,103760.0,103750.0,1.65496003]
[1747050839287,0.03954816,103760.0,103750.0,1.65496003]
[1747050839934,0.02991082,103760.0,103750.0,1.65496003]
[1747050840325,0.001,103760.0,103750.0,1.67950088]
[1747050840539,0.001,103760.0,103750.0,2.01056299]
[1747050840752,0.00014654,103780.0,103770.0,0.56164289]
[1747050840954,0.00014654,103780.0,103770.0,3.50904215]
[1747050841154,1e-08,103780.0,103770.0,3.50904215]
[1747050841379,1e-08,103780.0,103770.0,1.43446015]
[1747050841584,1e-08,103780.0,103770.0,1.84446015]
[1747050842219,0.002,103790.0,103780.0,3.76240063]
[1747050842432,0.04395312,103820.0,103810.0,0.56155739]
[1747050842626,0.05358434,103820.0,103810.0,1.7428905]
[1747050842850,0.39332368,103820.0,103810.0,0.4958543]
[1747050843025,0.40332368,103820.0,103810.0,0.4]
[1747050843585,0.39332368,103820.0,103810.0,0.4]
[1747050843826,0.39432368,103820.0,103800.0,0.52373569]
[1747050843988,0.33242313,103820.0,103810.0,0.34069509]
[1747050844233,0.25585804,103820.0,103810.0,0.33106211]
[1747050844437,0.25885804,103820.0,103810.0,0.73206211]
[1747050844753,0.31715804,103820.0,103810.0,0.4]
[1747050844952,0.28615804,103820.0,103810.0,0.4]
[1747050845376,0.24220492,103820.0,103810.0,0.73106211]
[1747050845605,0.24220492,103820.0,103810.0,0.4]
[1747050845820,0.27320492,103820.0,103810.0,0.4]
[1747050846024,0.27420492,103820.0,103810.0,0.42175527]
[1747050846386,0.27320492,103820.0,103810.0,0.4]
[1747050846592,0.21194538,103800.0,103790.0,0.71108]
[1747050846794,0.21194538,103800.0,103790.0,1.13799641]
[1747050846795,0.22157845,103800.0,103790.0,1.13799641]
[1747050847018,0.19267822,103800.0,103790.0,3.67055085]
[1747050847216,0.21194529,103800.0,103790.0,2.58758885]
[1747050847425,0.21194529,103800.0,103790.0,1.91602124]
[1747050847648,0.21194557,103800.0,103790.0,1.04368794]
[1747050847851,0.21294557,103800.0,103790.0,1.37775005]
[1747050848084,0.20331194,103800.0,103790.0,1.37775005]
[1747050848508,0.20331194,103800.0,103790.0,1.38075005]
[1747050848714,0.21294538,103800.0,103790.0,1.38075005]
[1747050848919,0.21294585,103800.0,103790.0,1.04968794]
[1747050849110,0.21294585,103800.0,103790.0,1.38075005]
[1747050850305,0.34781186,103800.0,103790.0,0.006]
[1747050850457,0.44366616,103800.0,103790.0,0.006]
[1747050850662,0.48496767,103800.0,103790.0,0.006]
[1747050851198,0.81602978,103800.0,103790.0,0.006]
[1747050851461,0.81602978,103800.0,103790.0,0.003]
[1747050851642,0.81602978,103800.0,103790.0,0.004]
[1747050851643,0.82102978,103800.0,103790.0,0.004]
[1747050852008,0.48996767,103800.0,103790.0,0.004]
[1747050852232,0.41340166,103800.0,103790.0,0.004]
[1747050852404,0.38652223,103800.0,103790.0,0.004]
[1747050852608,0.26306793,103800.0,103790.0,0.33206211]
[1747050852975,0.31006793,103800.0,103790.0,0.002]
[1747050853625,0.28564585,103800.0,103790.0,0.33306211]
[1747050853828,0.21694585,103800.0,103790.0,0.53439373]
[1747050854045,0.22657883,103800.0,103790.0,0.54402829]
[1747050854259,0.0262668,103800.0,103790.0,0.96429693]
[1747050854462,0.0262668,103800.0,103790.0,1.06429693]
[1747050854463,0.03590024,103800.0,103790.0,1.06429693]
[1747050854623,0.05016787,103800.0,103790.0,1.06329712]
[1747050854804,0.24284609,103800.0,103790.0,1.06329712]
[1747050855008,0.23721283,103800.0,103790.0,1.0729314]
[1747050855264,0.006,103800.0,103790.0,2.72418205]
[1747050855488,0.02126642,103800.0,103790.0,2.47983205]
[1747050855684,0.01926642,103800.0,103790.0,2.41059105]
[1747050855866,0.00963224,103810.0,103800.0,0.22157883]
[1747050856071,0.23119018,103810.0,103800.0,0.54300768]
[1747050856273,0.23119018,103810.0,103800.0,0.55264103]
[1747050856474,0.23119018,103810.0,103800.0,0.95264112]
[1747050856734,0.23119018,103810.0,103800.0,0.94300768]
[1747050856942,0.20462673,103830.0,103820.0,0.1926411]
[1747050856943,0.25642673,103830.0,103820.0,0.1926411]
[1747050857087,0.25642673,103830.0,103810.0,0.02889782]
[1747050857088,0.21190455,103820.0,103810.0,0.21192534]
[1747050857288,0.21190455,103820.0,103810.0,0.54298745]
[1747050857472,0.21190492,103820.0,103810.0,0.94298745]
[1747050857872,0.02889494,103820.0,103810.0,1.39810669]
[1747050858070,0.231168,103820.0,103810.0,1.39810678]
[1747050858460,0.24080005,103820.0,103810.0,1.39810678]
[1747050858664,0.24080005,103820.0,103810.0,1.40773911]
[1747050858979,0.0405269,103820.0,103810.0,1.40773911]
[1747050859135,0.0435269,103820.0,103810.0,1.40873911]
[1747050859335,0.03089494,103820.0,103810.0,1.40773911]
[1747050859538,0.231168,103820.0,103810.0,1.37884175]
[1747050859800,0.23216809,103820.0,103810.0,1.37884184]
[1747050860251,0.23216809,103820.0,103810.0,1.39810705]
[1747050860460,0.0106314,103820.0,103810.0,1.40773938]
[1747050860660,0.001,103820.0,103810.0,2.26281738]
[1747050860835,0.0106314,103820.0,103810.0,2.26281738]
[1747050861073,0.001,103820.0,103810.0,2.26281738]
[1747050861486,0.01063122,103820.0,103810.0,2.26281738]
[1747050861689,0.02026253,103820.0,103810.0,2.29171938]
[1747050862067,0.02889412,103820.0,103810.0,2.29171938]
[1747050862302,0.02026253,103820.0,103810.0,2.29371938]
[1747050862572,0.02989402,103820.0,103810.0,2.3280382]
[1747050862800,0.0106314,103820.0,103810.0,2.29371938]
[1747050863071,0.001,103820.0,103810.0,2.29371938]
[1747050863267,0.00214711,103830.0,103820.0,0.58607699]
[1747050863474,0.00214711,103830.0,103820.0,3.9405584]
[1747050863890,0.00214711,103830.0,103820.0,3.1233254]
[1747050864092,0.00214711,103830.0,103820.0,3.5233254]
[1747050864506,0.01177749,103830.0,103820.0,2.1849904]
[1747050864724,0.0117774,103830.0,103820.0,2.1849904]
[1747050864926,0.00214711,103830.0,103820.0,2.1849904]
[1747050865866,0.0117774,103830.0,103820.0,2.1749904]
[1747050866070,0.0117774,103830.0,103820.0,1.9962704]
[1747050866280,0.24533126,103830.0,103820.0,0.6806543]
[1747050866532,0.24533126,103830.0,103820.0,1.22362152]
[1747050866732,0.24533126,103830.0,103820.0,1.12776703]
[1747050867110,0.22466238,103830.0,103820.0,1.47076703]
[1747050867295,0.22466238,103830.0,103820.0,1.13076722]
[1747050867486,0.22466238,103830.0,103820.0,1.14039908]
[1747050867705,0.22466238,103830.0,103820.0,1.49003085]
[1747050867900,0.22466238,103830.0,103820.0,1.48039908]
[1747050868102,0.22466238,103830.0,103820.0,1.49003085]
[1747050868307,0.22466238,103830.0,103820.0,1.48039908]
[1747050868530,0.22466238,103830.0,103820.0,1.48039899]
[1747050868689,0.21503126,103830.0,103820.0,1.48039899]
[1747050868890,0.22466229,103830.0,103820.0,1.48039899]
[1747050869078,0.22466229,103830.0,103820.0,1.49003067]
[1747050869274,0.22466229,103830.0,103820.0,1.48039899]
[1747050869483,0.26690069,103830.0,103820.0,0.746]
[1747050870123,0.26690069,103830.0,103820.0,1.07706211]
[1747050871145,0.20540069,103830.0,103820.0,1.07706211]
[1747050871911,0.20540069,103830.0,103820.0,0.746]
[1747050872123,0.20540069,103830.0,103820.0,1.07706211]
[1747050873363,0.00314711,103830.0,103820.0,1.27933507]
[1747050873728,0.01277758,103830.0,103820.0,1.29859815]
[1747050873936,0.02240833,103830.0,103820.0,2.10851645]
[1747050874120,0.01277749,103830.0,103820.0,1.95976645]
[1747050874570,0.03203862,103830.0,103820.0,1.95976645]
[1747050874775,0.02240796,103830.0,103820.0,1.95976645]
[1747050874977,0.0127774,103830.0,103820.0,1.95976645]
[1747050875168,0.02240787,103830.0,103820.0,1.95976645]
[1747050875296,0.0127774,103830.0,103820.0,1.39445245]
[1747050875500,0.02240778,103830.0,103820.0,1.99675345]
[1747050875748,0.00314711,103830.0,103820.0,1.99675345]
[1747050876394,0.00314711,103830.0,103820.0,2.03725345]
[1747050876597,0.01162843,103850.0,103840.0,0.56149347]
[1747050876805,0.02125714,103850.0,103840.0,1.35932258]
[1747050877014,0.23310067,103850.0,103840.0,1.01763258]
[1747050877156,0.22347224,103850.0,103840.0,0.99837312]
[1747050877352,0.27554353,103850.0,103840.0,0.74]
[1747050877848,0.27654353,103850.0,103840.0,0.74]
[1747050878151,0.27654353,103850.0,103840.0,1.07106211]
[1747050878686,0.27654353,103850.0,103840.0,1.26366611]
[1747050878884,0.26691463,103850.0,103840.0,1.07106211]
[1747050879085,0.25728545,103850.0,103840.0,1.07106211]
[1747050879293,0.26791472,103850.0,103840.0,1.27329621]
[1747050879491,0.2775438,103850.0,103840.0,1.07106211]
[1747050879767,0.26791472,103850.0,103840.0,1.07106211]
[1747050879985,0.01362843,103850.0,103840.0,1.27329621]
[1747050880149,0.02325714,103850.0,103840.0,1.3268744]
[1747050880380,0.23510085,103850.0,103840.0,1.28292622]
[1747050880555,0.23510085,103850.0,103840.0,1.29255614]
[1747050880901,0.23510085,103850.0,103840.0,1.30218596]
[1747050881072,0.23410085,103850.0,103840.0,1.30218596]
[1747050881299,0.03188613,103850.0,103840.0,1.33201011]
[1747050881489,0.13888279,103850.0,103840.0,1.31275074]
[1747050881639,0.17008279,103850.0,103840.0,1.29349081]
[1747050881834,0.17008279,103850.0,103840.0,1.30312082]
[1747050882066,0.16045371,103850.0,103840.0,1.09125671]
[1747050882269,0.18985371,103850.0,103840.0,1.29349091]
[1747050882466,0.18985371,103850.0,103840.0,1.09325671]
[1747050882796,0.18985371,103850.0,103840.0,0.743]
[1747050884947,0.18985371,103850.0,103840.0,0.403]
[1747050885145,0.19985371,103850.0,103840.0,0.403]
[1747050885618,0.19985371,103850.0,103840.0,0.003]
[1747050889443,0.19985371,103850.0,103840.0,0.33406211]
[1747050889831,0.19985371,103850.0,103840.0,0.003]
[1747050891342,0.18985371,103850.0,103840.0,0.24773254]
[1747050891920,0.15955371,103850.0,103840.0,0.24773254]
[1747050892121,0.16918298,103850.0,103840.0,0.78033654]
[1747050892323,0.15814115,103850.0,103840.0,0.58773254]
[1747050892524,0.14851216,103850.0,103840.0,0.58773254]
[1747050892729,0.14851216,103850.0,103840.0,0.78996655]
[1747050892929,0.14851216,103850.0,103840.0,0.78033654]
[1747050893182,0.14851216,103850.0,103840.0,0.58773254]
[1747050893687,0.14851216,103850.0,103840.0,0.78033654]
[1747050894105,0.14851216,103850.0,103840.0,0.78996674]
[1747050894278,0.14851216,103850.0,103840.0,0.58773254]
[1747050894482,0.13888298,103850.0,103840.0,0.58773254]
[1747050894867,0.13888298,103850.0,103840.0,0.98773254]
[1747050895068,0.20058298,103850.0,103840.0,0.98773254]
[1747050895299,0.20058298,103850.0,103840.0,0.743]
[1747050895500,0.20058298,103850.0,103840.0,0.98773254]
[1747050896307,0.23110085,103850.0,103840.0,1.18996664]
[1747050896505,0.23110085,103850.0,103840.0,1.18033654]
[1747050896666,0.22147242,103850.0,103840.0,0.98773254]
[1747050896894,0.21184371,103850.0,103840.0,0.98773254]
[1747050897096,0.21184371,103850.0,103840.0,1.18033654]
[1747050897313,0.21184371,103850.0,103840.0,0.99736274]
[1747050897887,0.21184371,103850.0,103840.0,1.18996674]
[1747050898109,0.21184371,103850.0,103840.0,0.99736274]
[1747050898302,0.21184371,103850.0,103840.0,1.18996674]
[1747050898460,0.21184371,103850.0,103840.0,0.99736274]
[1747050899003,0.21184371,103850.0,103840.0,1.18996674]
[1747050899930,0.21184371,103850.0,103840.0,0.98773254]
[1747050900136,0.20221472,103850.0,103840.0,0.98773254]
[1747050900336,0.23341472,103850.0,103840.0,0.98773254]
[1747050900543,0.26321472,103850.0,103840.0,0.98773254]
[1747050900745,0.26321472,103850.0,103840.0,1.18996664]
[1747050901149,0.26321472,103850.0,103840.0,1.19959665]
[1747050901791,0.21184371,103850.0,103840.0,1.18996664]
[1747050901994,0.21184371,103850.0,103840.0,1.19959665]
[1747050902354,0.21184371,103850.0,103840.0,1.18996664]
[1747050902842,0.21184371,103850.0,103840.0,1.21885602]
[1747050902843,0.01925714,103850.0,103840.0,1.21885602]
[1747050902973,0.02888594,103850.0,103840.0,1.25317484]
[1747050903174,0.23110047,103850.0,103840.0,1.30508077]
[1747050903397,0.23110122,103850.0,103840.0,1.30508077]
[1747050903571,0.22147251,103850.0,103840.0,1.28582104]
[1747050903773,0.26553078,103870.0,103840.0,1.27619084]
[1747050904082,0.23662105,103870.0,103860.0,0.24473254]
[1747050904659,0.26552105,103870.0,103860.0,0.24473254]
[1747050905636,0.26552105,103870.0,103850.0,0.4]
[1747050905886,0.26119507,103860.0,103850.0,0.74]
[1747050906086,0.26119507,103860.0,103850.0,0.4]
[1747050906332,0.27119507,103860.0,103850.0,0.4]
[1747050907102,0.26391453,103850.0,103840.0,0.59436274]
[1747050907288,0.26391453,103850.0,103840.0,0.58473254]
[1747050907482,0.26391453,103850.0,103840.0,0.98473254]
[1747050908769,0.27391453,103850.0,103840.0,0.002]
[1747050909086,0.27391453,103850.0,103840.0,0.003]
[1747050909718,0.27391453,103850.0,103840.0,0.24773254]
[1747050909941,0.28354352,103850.0,103840.0,0.24773254]
[1747050910189,0.26391453,103850.0,103840.0,0.24773254]
[1747050910341,0.27391453,103850.0,103840.0,0.24773254]
[1747050911767,0.20221453,103850.0,103840.0,0.78033654]
[1747050912025,0.21184333,103850.0,103840.0,0.58773254]
[1747050912391,0.27344333,103850.0,103840.0,0.58773254]
[1747050914078,0.27344333,103850.0,103840.0,0.98773254]
[1747050915968,0.27344333,103850.0,103840.0,1.18033654]
[1747050916184,0.27344333,103850.0,103840.0,1.18996674]
[1747050916384,0.27344333,103850.0,103840.0,0.98773254]
[1747050916722,0.20221453,103850.0,103840.0,1.18996674]
[1747050916904,1.21184324,103850.0,103840.0,1.20922666]
[1747050917150,1.23110085,103850.0,103840.0,1.21885658]
[1747050917301,1.22147279,103850.0,103840.0,1.20922685]
[1747050918093,1.2118438,103850.0,103840.0,1.19959684]
[1747050918297,1.2406438,103850.0,103840.0,1.18996674]
[1747050918577,1.23101472,103850.0,103840.0,1.18996674]
[1747050918904,1.23101472,103850.0,103840.0,0.98773254]
[1747050919107,1.23101472,103850.0,103840.0,0.99736274]
[1747050919304,1.23101472,103850.0,103840.0,1.18996674]
[1747050920182,1.23101472,103850.0,103840.0,1.19959684]
[1747050920389,1.23101472,103850.0,103840.0,0.98773254]
[1747050920614,1.25318545,103850.0,103840.0,1.18996674]
[1747050920751,1.27244371,103850.0,103840.0,1.2092263]
[1747050920946,1.29170178,103850.0,103840.0,1.20922648]
[1747050921176,1.29170178,103850.0,103840.0,1.22848585]
[1747050921581,1.22147251,103850.0,103840.0,1.2284852]
[1747050921785,1.0,103850.0,103840.0,1.56907204]
[1747050921986,1.00962853,103850.0,103840.0,1.7067115]
[1747050922737,1.02888623,103850.0,103840.0,1.3243395]
[1747050922940,1.0,103850.0,103840.0,1.5964085]
[1747050923087,1.0,103850.0,103840.0,1.87545986]
[1747050923251,1.00962853,103850.0,103840.0,1.6275085]
[1747050923482,1.01925733,103850.0,103840.0,1.5964085]
[1747050923684,1.00962853,103850.0,103840.0,1.5964085]
[1747050923891,1.01925715,103850.0,103840.0,1.5964085]
[1747050924300,1.02888595,103850.0,103840.0,1.3243395]
[1747050924551,1.01925715,103850.0,103840.0,1.3243395]
[1747050924714,1.01925715,103850.0,103840.0,1.6587645]
[1747050925722,1.02888595,103850.0,103840.0,1.5977735]
[1747050925965,1.01925715,103850.0,103840.0,1.5977735]
[1747050926165,1.03851466,103850.0,103840.0,1.5977735]
[1747050927153,1.03851466,103850.0,103840.0,1.3243395]
[1747050927360,1.20221435,103850.0,103840.0,1.28684884]
[1747050927569,1.27004343,103850.0,103840.0,0.343]
[1747050928050,1.28004343,103850.0,103840.0,0.403]
[1747050928298,1.28004343,103850.0,103840.0,0.003]
[1747050928941,1.28004343,103850.0,103840.0,0.001]
[1747050929218,1.28004343,103850.0,103840.0,0.24573254]
[1747050930126,1.28004343,103850.0,103840.0,0.001]
[1747050930359,0.26273401,103840.0,103830.0,0.98473254]
[1747050930834,0.27236393,103840.0,103830.0,1.22946508]
[1747050931063,0.27236393,103840.0,103830.0,1.44134941]
[1747050931296,0.28199403,103840.0,103830.0,1.4413495]
[1747050931517,0.21186411,103840.0,103830.0,1.2400962]
[1747050931747,0.21186337,103840.0,103830.0,1.44234941]
[1747050931969,0.22149329,103840.0,103830.0,1.4423495]
[1747050932208,0.23112321,103840.0,103830.0,1.46161082]
[1747050932431,0.23112312,103840.0,103830.0,1.45198025]
[1747050932685,0.22149357,103840.0,103830.0,1.4423496]
[1747050932909,0.22149357,103840.0,103830.0,1.46361119]
[1747050933142,0.22149357,103840.0,103830.0,1.45398044]
[1747050933377,0.21186356,103840.0,103830.0,1.47324166]
[1747050933507,0.22149357,103840.0,103830.0,1.47324166]
[1747050933904,0.23112367,103840.0,103830.0,1.4443496]
[1747050934126,0.21186411,103840.0,103830.0,1.42508763]
[1747050934340,0.20223373,103840.0,103830.0,1.44434941]
[1747050934548,0.22149328,103840.0,103830.0,1.43471866]
[1747050934794,0.21186383,103840.0,103830.0,1.2420962]
[1747050934963,0.24316383,103840.0,103830.0,1.2420962]
[1747050935195,0.24316383,103840.0,103830.0,1.25172723]
[1747050935431,0.24316383,103840.0,103830.0,1.2420962]
[1747050935607,0.24316383,103840.0,103830.0,1.25172723]
[1747050935814,0.24316383,103840.0,103830.0,1.2420962]
[1747050936313,0.2653341,103840.0,103830.0,0.98773254]
[1747050936580,0.68248695,103840.0,103830.0,0.003]
[1747050936814,1.33376695,103840.0,103830.0,0.003]
[1747050937053,1.3483078,103840.0,103830.0,0.003]
[1747050937295,1.1945078,103840.0,103830.0,0.003]
[1747050937543,1.3481478,103840.0,103830.0,0.002]
[1747050937750,0.26215349,103830.0,103820.0,0.102]
[1747050937968,0.35800779,103830.0,103820.0,0.1122]
[1747050938205,0.61728118,103830.0,103820.0,0.102]
[1747050938420,0.95728118,103830.0,103820.0,0.102]
[1747050938875,0.71254864,103830.0,103820.0,0.102]
[1747050939294,0.72707937,103830.0,103820.0,0.102]
[1747050939499,0.97181191,103830.0,103820.0,0.102]
[1747050939706,0.97381191,103830.0,103820.0,0.102]
[1747050939981,1.09381191,103830.0,103820.0,0.04]
[1747050940455,1.43439875,103830.0,103820.0,0.04]
[1747050940684,1.43439875,103830.0,103820.0,0.041]
[1747050940685,1.09381191,103830.0,103820.0,0.041]
[1747050940915,1.11506862,103830.0,103820.0,0.041]
[1747050941139,1.11306862,103830.0,103820.0,0.041]
[1747050941586,1.11706862,103830.0,103820.0,0.041]
[1747050943771,0.28706581,103810.0,103800.0,0.002]
[1747050943914,0.93265265,103810.0,103800.0,0.00214711]
[1747050945057,0.68792011,103810.0,103800.0,0.00214711]
[1747050946368,0.68892011,103810.0,103800.0,0.00214711]
[1747050946787,0.38392011,103810.0,103800.0,0.00214711]
[1747050946988,0.68792011,103810.0,103800.0,0.00214711]
[1747050947191,0.68684011,103810.0,103800.0,0.00214711]
[1747050947397,0.69180011,103810.0,103800.0,0.00314711]
[1747050947790,0.38792011,103810.0,103800.0,0.00314711]
[1747050947990,0.69176011,103810.0,103800.0,0.00314711]
[1747050948414,0.69168011,103810.0,103800.0,0.00314711]
[1747050949027,0.69148011,103810.0,103800.0,0.00314711]
[1747050949635,0.38792011,103810.0,103800.0,0.00314711]
[1747050949836,0.69120011,103810.0,103800.0,0.00314711]
[1747050950181,0.37337926,103810.0,103800.0,0.00314711]
[1747050950382,0.67645926,103810.0,103800.0,0.24787965]
[1747050950593,0.67645926,103810.0,103800.0,0.00314711]
[1747050951387,0.67657926,103810.0,103800.0,0.00314711]
[1747050951964,0.73430926,103810.0,103800.0,0.00314711]
[1747050952168,0.67657926,103810.0,103800.0,0.00314711]
[1747050952506,0.69112011,103810.0,103800.0,0.00314711]
[1747050952722,1.27585265,103810.0,103800.0,0.00314711]
[1747050952950,1.6076596,103810.0,103800.0,0.00314711]
[1747050953151,1.57585265,103810.0,103800.0,0.00314711]
[1747050953584,1.33112011,103810.0,103800.0,0.00314711]
[1747050953781,1.32612011,103810.0,103800.0,0.00214711]
[1747050954008,1.33412011,103810.0,103800.0,0.00314711]
[1747050954299,1.03092011,103810.0,103800.0,0.00314711]
[1747050954513,1.67394695,103810.0,103800.0,0.00314711]
[1747050954717,1.57809265,103810.0,103800.0,0.00314711]
[1747050955354,1.91247214,103810.0,103800.0,0.00314711]
[1747050955574,1.6677396,103810.0,103800.0,0.00314711]
[1747050956855,0.20275357,103760.0,103750.0,0.01927664]
[1747050957067,0.22202779,103760.0,103750.0,0.24487908]
[1747050957238,0.22166522,103760.0,103750.0,0.24487908]
[1747050957442,0.22166522,103760.0,103750.0,0.58487908]
[1747050957645,0.2120277,103760.0,103750.0,0.78728852]
[1747050957910,0.24130248,103760.0,103750.0,0.98487908]
[1747050958226,0.24130248,103760.0,103750.0,0.74014654]
[1747050958227,0.23230219,103760.0,103750.0,0.74014654]
[1747050958376,0.21302816,103760.0,103750.0,0.98487908]
[1747050958581,0.203391,103760.0,103750.0,0.98487908]
[1747050959157,0.204391,103760.0,103750.0,0.98865178]
[1747050959793,0.21402816,103760.0,103750.0,1.04875178]
[1747050959987,0.22366578,103760.0,103750.0,1.04875178]
[1747050960390,0.21402761,103760.0,103750.0,1.04875178]
[1747050960590,0.21402761,103760.0,103750.0,1.24152286]
[1747050960791,0.22366495,103760.0,103750.0,1.24152286]
[1747050960972,0.23330238,103760.0,103750.0,1.04875178]
[1747050961196,0.23330312,103760.0,103750.0,1.04875178]
[1747050961399,0.2236655,103760.0,103750.0,1.04875178]
[1747050961659,0.2236655,103760.0,103750.0,0.71083254]
[1747050962031,0.20474973,103770.0,103760.0,0.07847478]
[1747050962032,0.002,103770.0,103760.0,0.07847478]
[1747050962270,0.21400611,103770.0,103760.0,0.85847383]
[1747050962595,0.21400611,103770.0,103760.0,0.85654675]
[1747050962802,0.002,103770.0,103760.0,2.433323]
[1747050963062,0.21400611,103770.0,103760.0,2.42368584]
[1747050963256,0.19573393,103770.0,103760.0,1.89750709]
[1747050963463,0.19573393,103770.0,103760.0,1.70135509]
[1747050963593,0.56399828,103790.0,103780.0,0.0286]
[1747050963802,0.56399772,103790.0,103780.0,0.30385941]
[1747050964001,0.21399772,103790.0,103780.0,0.30193254]
[1747050964275,0.23363237,103790.0,103780.0,0.30193254]
[1747050964480,0.22363228,103790.0,103780.0,0.30193254]
[1747050964887,0.22363237,103790.0,103780.0,0.30193254]
[1747050965036,0.2332672,103790.0,103780.0,0.30193254]
[1747050965293,0.21399772,103790.0,103780.0,0.50428347]
[1747050965476,0.23326692,103790.0,103780.0,0.30193254]
[1747050965672,0.23326692,103790.0,103780.0,0.70193254]
[1747050965854,0.21499772,103790.0,103780.0,0.70193254]
[1747050966068,0.003,103790.0,103780.0,0.99450219]
[1747050966268,0.19469679,103790.0,103780.0,1.99412984]
[1747050966472,0.21496581,103790.0,103780.0,0.80478684]
[1747050966672,0.21496581,103790.0,103780.0,0.77618684]
[1747050967153,0.27556581,103790.0,103780.0,0.007]
[1747050967355,0.37142011,103790.0,103780.0,0.007]
[1747050967833,0.31082011,103790.0,103780.0,0.007]
[1747050968580,0.22496581,103790.0,103780.0,0.25365953]
[1747050968826,0.21533116,103790.0,103780.0,0.28303254]
[1747050969052,0.24423445,103790.0,103780.0,0.28303254]
[1747050969268,0.22496543,103790.0,103780.0,0.51598365]
[1747050969433,0.22460008,103790.0,103780.0,0.31363254]
[1747050969634,0.23460008,103790.0,103780.0,0.31363254]
[1747050969837,0.24423491,103790.0,103780.0,0.34795136]
[1747050970043,0.23460008,103790.0,103780.0,0.31363254]
[1747050970400,0.2249659,103790.0,103780.0,0.007]
[1747050970826,0.2149659,103790.0,103780.0,0.007]
[1747050971263,0.95655274,103790.0,103780.0,0.007]
[1747050971467,0.7118202,103790.0,103780.0,0.007]
[1747050973293,0.97109359,103790.0,103780.0,0.007]
[1747050973741,0.7118202,103790.0,103780.0,0.007]
[1747050973962,0.3424202,103790.0,103780.0,0.007]
[1747050974206,0.3729202,103790.0,103780.0,0.007]
[1747050976274,0.97219359,103790.0,103780.0,0.007]
[1747050977268,1.0487596,103790.0,103780.0,0.007]
[1747050978192,1.98313909,103790.0,103780.0,0.003]
[1747050978400,1.46503638,103790.0,103780.0,0.003]
[1747050978610,1.46603638,103790.0,103780.0,0.003]
[1747050979021,1.46503638,103790.0,103780.0,0.003]
[1747050979245,0.21204752,103750.0,103740.0,0.402]
[1747050979453,0.92241521,103750.0,103740.0,0.002]
[1747050980697,0.92356208,103750.0,103740.0,0.004]
[1747050980843,0.92356208,103750.0,103740.0,0.005]
[1747050981826,1.26356208,103750.0,103740.0,0.005]
[1747050982474,1.56356208,103750.0,103740.0,0.005]
[1747050982908,1.80829462,103750.0,103740.0,0.005]
[1747050983345,1.1735618,103730.0,103720.0,0.002]
[1747050983558,1.6856161,103730.0,103720.0,0.002]
[1747050983986,1.42940356,103730.0,103720.0,0.002]
[1747050984217,1.6741361,103730.0,103720.0,0.002]
[1747050984855,1.6781361,103730.0,103720.0,0.002]
[1747050985280,1.14488356,103730.0,103720.0,0.002]
[1747050985494,1.32339525,103730.0,103720.0,0.002]
[1747050985704,1.32639525,103730.0,103720.0,0.002]
[1747050985928,1.08166271,103730.0,103720.0,0.002]
[1747050986139,1.3409361,103730.0,103720.0,0.002]
[1747050986339,1.3409361,103730.0,103690.0,0.24713254]
[1747050986548,0.20286403,103700.0,103690.0,0.58473254]
[1747050986959,0.20286403,103700.0,103690.0,0.34]
[1747050987161,0.22214977,103700.0,103690.0,1.53026854]
[1747050987362,0.23179222,103700.0,103690.0,1.49638454]
[1747050987578,0.23179222,103700.0,103690.0,1.18903954]
[1747050987780,0.23188654,103700.0,103690.0,1.01322154]
[1747050988026,0.23288654,103700.0,103690.0,1.01322154]
[1747050988241,0.23288654,103700.0,103690.0,1.01122154]
[1747050988456,0.22324409,103700.0,103690.0,0.61723254]
[1747050988666,0.21360136,103700.0,103690.0,0.61723254]
[1747050988877,0.21360136,103700.0,103690.0,1.01723254]
[1747050989313,0.21360136,103700.0,103690.0,0.98673254]
[1747050989758,0.22324353,103700.0,103690.0,1.04993254]
[1747050990112,0.24252918,103700.0,103690.0,0.8052]
[1747050990320,0.23288673,103700.0,103690.0,0.98673254]
[1747050990831,0.22324372,103700.0,103690.0,0.98673254]
[1747050991108,0.01109432,103700.0,103690.0,4.35554686]
[1747050991309,0.20395835,103700.0,103690.0,2.53596957]
[1747050991577,0.22324354,103700.0,103690.0,1.3483136]
[1747050991920,0.22324354,103700.0,103690.0,1.48768684]
[1747050991921,0.24252946,103700.0,103690.0,1.48768684]
[1747050992128,0.20395835,103700.0,103690.0,1.7095012]
[1747050992328,0.2136008,103700.0,103690.0,1.69985745]
[1747050992528,0.23288635,103700.0,103690.0,1.14578684]
[1747050992757,0.24252927,103700.0,103690.0,1.15543097]
[1747050993054,0.25217303,103700.0,103690.0,0.9010543]
[1747050993265,0.22324456,103700.0,103690.0,0.98673254]
[1747050993459,0.38566487,103700.0,103690.0,0.002]
[1747050993644,0.34209886,103700.0,103690.0,0.002]
[1747050994581,0.46580572,103700.0,103690.0,0.002]
[1747050994992,0.37469886,103700.0,103690.0,0.24673254]
[1747050995204,0.21324409,103700.0,103690.0,0.27140579]
[1747050995400,0.22288682,103700.0,103690.0,0.27140579]
[1747050995658,0.19395835,103700.0,103690.0,0.67600579]
[1747050995874,0.20395835,103700.0,103690.0,2.04323107]
[1747050996084,0.20395835,103700.0,103690.0,1.78885496]
[1747050996272,0.00109432,103700.0,103690.0,1.82134598]
[1747050996456,0.2136009,103700.0,103690.0,1.42520075]
[1747050996616,0.22324335,103700.0,103690.0,1.1389376]
[1747050996804,0.23288673,103700.0,103690.0,0.77186009]
[1747050997003,0.23288673,103700.0,103690.0,0.73966009]
[1747050997202,0.23288673,103700.0,103690.0,0.70726009]
[1747050997407,0.21324418,103700.0,103690.0,0.36667325]
[1747050997614,0.21324418,103700.0,103690.0,0.61140579]
[1747050997823,0.21324418,103700.0,103690.0,0.36667325]
[1747050998023,0.20360136,103700.0,103690.0,0.61140579]
[1747050998616,0.20360136,103700.0,103690.0,0.76667325]
[1747050998818,0.23620136,103700.0,103690.0,0.402]
[1747050999693,0.26710136,103700.0,103690.0,0.402]
[1747051002051,0.26710136,103700.0,103690.0,0.002]
[1747051003744,0.01,103690.0,103670.0,0.30292783]
[1747051003943,0.23183473,103680.0,103670.0,0.408895]